fUST/lending_fUST_20250906
["ID","MTS","AMOUNT","RATE_DAILY","PERIOD"]
[383844574,1757140248490,-151.0,0.0001399,2]
[383844575,1757140248499,-151.0,0.0001399,2]
[383844576,1757140248509,-151.0,0.0001399,2]
[383844577,1757140248519,-203.939381,0.0001399,2]
[383844578,1757140248529,-151.0,0.0001399,2]
[383844579,1757140248539,-151.0,0.0001399,2]
[383844580,1757140248548,-151.0,0.0001399,2]
[383844581,1757140248558,-151.0,0.0001399,2]
[383844582,1757140248568,-151.0,0.0001399,2]
[383844583,1757140248578,-295.3355136,0.00014,2]
[383844584,1757140248588,-153.0,0.00014,2]
[383844585,1757140248598,-388.5765985,0.00014,2]
[383844586,1757140248608,-295.3355136,0.00014,2]
[383844587,1757140248619,-153.0,0.00014,2]
[383844588,1757140248628,-1916.6362169,0.00014008,2]
[383844589,1757140248638,-151.0,0.00014052,2]
[383844590,1757140248647,-151.0,0.00014052,2]
[383844591,1757140248657,-151.0,0.00014052,2]
[383844592,1757140248667,-5888.0,0.00014052,2]
[383844593,1757140248677,-388.5765985,0.00014137,2]
[383844594,1757140248687,-1916.6362169,0.00014145,2]
[383844595,1757140248698,-23743.75085239,0.00014146,2]
[383844596,1757140248708,-388.5765985,0.00014219,2]
[383844597,1757140248719,-450.3168327,0.00014219,2]
[383844598,1757140248728,-388.5765985,0.00014219,2]
[383844599,1757140248738,-521.33749465,0.00014221,2]
[383844600,1757140248747,-400.72478266,0.00014221,2]
[383844601,1757140248757,-1000.0,0.00014221,2]
[383844602,1757140248767,-1000.0,0.00014221,2]
[383844603,1757140248777,-1000.0,0.00014221,2]
[383844604,1757140248786,-501.06226976,0.00014221,2]
[383844605,1757140248796,-1000.0,0.00014221,2]
[383844606,1757140248806,-1003.75066899,0.00014221,2]
[383844607,1757140248816,-1000.0,0.00014221,2]
[383844608,1757140248825,-1000.0,0.00014221,2]
[383844609,1757140248835,-1000.0,0.00014221,2]
[383844610,1757140248845,-151.0,0.00014221,2]
[383844611,1757140248855,-151.0,0.00014221,2]
[383844612,1757140248864,-928.41897789,0.00014229,2]
[383844613,1757140248874,-25913.8259355,0.00014245,2]
[383844614,1757140248883,-9433.61094,0.00014245,2]
[383844615,1757140248893,-8382.3259233,0.00014245,2]
[383844616,1757140248903,-2380.8003892,0.00014245,2]
[383844617,1757140248913,-9782.38082158,0.00014245,2]
[383844618,1757140249076,-2119.95278832,0.00014245,2]
[383844619,1757140249086,-295.267342,0.00014245,2]
[383844620,1757140249096,-295.267342,0.00014245,2]
[383844621,1757140249205,-295.267342,0.00014245,2]
[383844622,1757140249215,-295.267342,0.00014245,2]
[383844623,1757140249224,-151.0,0.00014245,2]
[383844624,1757140249234,-151.0,0.00014245,2]
[383844625,1757140249244,-293.067852,0.00014245,2]
[383844626,1757140249253,-14617.00793309,0.00014245,2]
[383844627,1757140249271,-961.7599996,0.00014245,2]
[383844628,1757140249445,-151.0,0.0001369,2]
[383844629,1757140249454,-151.0,0.0001369,2]
[383844630,1757140249464,-151.0,0.0001369,2]
[383844631,1757140249474,-480.0,0.00013698,2]
[383844632,1757140249484,-151.0,0.00013972,2]
[383844633,1757140249493,-482.85508062,0.00013972,2]
[383844634,1757140249502,-202.118102,0.00013972,2]
[383844635,1757140249512,-151.0,0.0001399,2]
[383844636,1757140249522,-13075.06046738,0.00014245,2]
[383844637,1757140249576,-8382.80720333,0.00014245,2]
[383844638,1757140249585,-151.0,0.00014245,2]
[383844639,1757140249596,-729.371364,0.00014245,2]
[383844640,1757140249605,-151.0,0.00014245,2]
[383844641,1757140249615,-151.0,0.00014245,2]
[383844642,1757140249624,-281.472187,0.00014245,2]
[383844643,1757140249634,-729.371364,0.00014245,2]
[383844644,1757140249644,-151.0,0.00014245,2]
[383844645,1757140249653,-729.371364,0.00014245,2]
[383844646,1757140249663,-171.723491,0.00014245,2]
[383844647,1757140249673,-729.371364,0.00014245,2]
[383844648,1757140249683,-480.0,0.00014246,2]
[383844649,1757140249692,-480.0,0.00014246,2]
[383844650,1757140249701,-1256.51369696,0.00014246,2]
[383844651,1757140249711,-556.08325805,0.00014246,2]
[383844652,1757140249720,-487.8409849,0.00014246,2]
[383844653,1757140249731,-480.0,0.00014246,2]
[383844654,1757140249741,-151.0,0.00014246,2]
[383844655,1757140249751,-480.0,0.00014246,2]
[383844656,1757140249761,-480.0,0.00014246,2]
[383844657,1757140249771,-480.0,0.00014246,2]
[383844658,1757140249780,-480.0,0.00014246,2]
[383844659,1757140249790,-480.0,0.00014246,2]
[383844660,1757140249801,-151.0,0.00014246,2]
[383844661,1757140249811,-151.0,0.00014246,2]
[383844662,1757140249820,-151.0,0.00014246,2]
[383844663,1757140249829,-480.0,0.00014246,2]
[383844664,1757140249839,-480.0,0.00014246,2]
[383844665,1757140249849,-480.0,0.00014246,2]
[383844666,1757140249859,-193.8842349,0.00014246,2]
[383844667,1757140249868,-252.26010928,0.00014246,2]
[383844668,1757140249877,-480.0,0.00014246,2]
[383844669,1757140249887,-480.0,0.00014246,2]
[383844670,1757140249898,-480.0,0.00014246,2]
[383844671,1757140249907,-480.0,0.00014246,2]
[383844672,1757140249917,-218.48452311,0.00014246,2]
[383844673,1757140249927,-480.0,0.00014246,2]
[383844674,1757140249937,-480.0,0.00014246,2]
[383844675,1757140249949,-480.0,0.00014246,2]
[383844676,1757140249958,-480.0,0.00014246,2]
[383844677,1757140249968,-480.0,0.00014246,2]
[383844678,1757140249977,-480.0,0.00014246,2]
[383844679,1757140249987,-480.0,0.00014246,2]
[383844680,1757140249997,-480.0,0.00014246,2]
[383844681,1757140250007,-151.0,0.00014246,2]
[383844682,1757140250017,-1025.32,0.00014246,2]
[383844683,1757140250027,-480.0,0.00014246,2]
[383844684,1757140250037,-480.0,0.00014246,2]
[383844685,1757140250046,-480.0,0.00014246,2]
[383844686,1757140250056,-480.0,0.00014246,2]
[383844687,1757140250067,-151.0,0.00014246,2]
[383844688,1757140250077,-480.0,0.00014246,2]
[383844689,1757140250087,-480.0,0.00014246,2]
[383844690,1757140250096,-480.0,0.00014246,2]
[383844691,1757140250106,-480.0,0.00014246,2]
[383844692,1757140250115,-480.0,0.00014246,2]
[383844693,1757140250125,-480.0,0.00014246,2]
[383844694,1757140250135,-480.0,0.00014246,2]
[383844695,1757140250145,-785.46,0.00014246,2]
[383844696,1757140250159,-151.0,0.00014246,2]
[383844697,1757140250169,-151.0,0.00014246,2]
[383844698,1757140250178,-261.693091,0.00014246,2]
[383844699,1757140250188,-261.693091,0.00014246,2]
[383844700,1757140250198,-261.693091,0.00014246,2]
[383844701,1757140250208,-151.0,0.00014246,2]
[383844702,1757140250217,-261.693091,0.00014246,2]
[383844703,1757140250227,-700.43,0.00014246,2]
[383844704,1757140250236,-151.0,0.00014246,2]
[383844705,1757140250246,-151.0,0.00014246,2]
[383844706,1757140250256,-480.0,0.00014246,2]
[383844707,1757140250265,-480.0,0.00014246,2]
[383844708,1757140250274,-624.26,0.00014246,2]
[383844709,1757140250284,-151.0,0.00014246,2]
[383844710,1757140250294,-480.0,0.00014246,2]
[383844711,1757140250303,-151.0,0.00014246,2]
[383844712,1757140250313,-480.0,0.00014246,2]
[383844713,1757140250323,-151.0,0.00014246,2]
[383844714,1757140250332,-480.0,0.00014246,2]
[383844715,1757140250341,-480.0,0.00014246,2]
[383844716,1757140250350,-480.0,0.00014246,2]
[383844717,1757140250360,-480.0,0.00014246,2]
[383844718,1757140250369,-480.0,0.00014246,2]
[383844719,1757140250378,-480.0,0.00014246,2]
[383844720,1757140250388,-189.53,0.00014246,2]
[383844721,1757140250397,-480.0,0.00014246,2]
[383844722,1757140250407,-480.0,0.00014246,2]
[383844723,1757140250416,-480.0,0.00014246,2]
[383844724,1757140250426,-819.56,0.00014246,2]
[383844725,1757140250435,-480.0,0.00014246,2]
[383844726,1757140250444,-746.1,0.00014246,2]
[383844727,1757140250454,-480.0,0.00014246,2]
[383844728,1757140250463,-592.25,0.00014246,2]
[383844729,1757140250472,-480.0,0.00014246,2]
[383844730,1757140250482,-480.0,0.00014246,2]
[383844731,1757140250491,-480.0,0.00014246,2]
[383844732,1757140250500,-480.0,0.00014246,2]
[383844733,1757140250509,-480.0,0.00014246,2]
[383844734,1757140250519,-616.61,0.00014246,2]
[383844735,1757140250528,-480.0,0.00014246,2]
[383844736,1757140250538,-480.0,0.00014246,2]
[383844737,1757140250547,-480.0,0.00014246,2]
[383844738,1757140250557,-480.0,0.00014246,2]
[383844739,1757140250566,-952.35,0.00014246,2]
[383844740,1757140250575,-480.0,0.00014246,2]
[383844741,1757140250585,-480.0,0.00014246,2]
[383844742,1757140250594,-480.0,0.00014246,2]
[383844743,1757140250603,-209.56594064,0.00014246,2]
[383844744,1757140250613,-480.0,0.00014246,2]
[383844745,1757140250622,-291.53,0.00014246,2]
[383844746,1757140250632,-480.0,0.00014246,2]
[383844747,1757140250641,-480.0,0.00014246,2]
[383844748,1757140250650,-480.0,0.00014246,2]
[383844749,1757140250660,-541.75,0.00014246,2]
[383844750,1757140250669,-480.0,0.00014246,2]
[383844751,1757140250678,-747.91,0.00014246,2]
[383844752,1757140250688,-582.02,0.00014246,2]
[383844753,1757140250697,-480.0,0.00014246,2]
[383844754,1757140250706,-480.0,0.00014246,2]
[383844755,1757140250715,-545.87579054,0.00014246,2]
[383844756,1757140250725,-600.61115662,0.00014246,2]
[383844757,1757140250735,-480.0,0.00014246,2]
[383844758,1757140250745,-151.0,0.00014246,2]
[383844759,1757140250754,-2902.19,0.00014246,2]
[383844760,1757140250765,-483.72518733,0.00014246,2]
[383844761,1757140250774,-480.0,0.00014246,2]
[383844762,1757140250784,-480.0,0.00014246,2]
[383844763,1757140250794,-480.0,0.00014246,2]
[383844764,1757140250804,-480.0,0.00014246,2]
[383844765,1757140250814,-581.23,0.00014246,2]
[383844766,1757140250823,-480.0,0.00014246,2]
[383844767,1757140250833,-480.0,0.00014246,2]
[383844768,1757140250842,-151.0,0.00014246,2]
[383844769,1757140250940,-1587.84,0.00014246,2]
[383844770,1757140250950,-480.0,0.00014246,2]
[383844771,1757140250960,-480.0,0.00014246,2]
[383844772,1757140250970,-480.0,0.00014246,2]
[383844773,1757140250979,-2556.12,0.00014246,2]
[383844774,1757140250989,-492.75,0.00014246,2]
[383844775,1757140250999,-480.0,0.00014246,2]
[383844776,1757140251008,-480.0,0.00014246,2]
[383844777,1757140251019,-480.0,0.00014246,2]
[383844778,1757140251028,-610.86,0.00014246,2]
[383844779,1757140251038,-151.0,0.00014246,2]
[383844780,1757140251048,-2349.09,0.00014246,2]
[383844781,1757140251058,-492.16,0.00014246,2]
[383844782,1757140251067,-480.0,0.00014246,2]
[383844783,1757140251077,-480.0,0.00014246,2]
[383844784,1757140251086,-2133.39,0.00014246,2]
[383844785,1757140251096,-480.0,0.00014246,2]
[383844786,1757140251106,-1993.72,0.00014246,2]
[383844787,1757140251116,-480.0,0.00014246,2]
[383844788,1757140251125,-2150.01,0.00014246,2]
[383844789,1757140251135,-480.0,0.00014246,2]
[383844790,1757140251144,-480.0,0.00014246,2]
[383844791,1757140251159,-480.0,0.00014246,2]
[383844792,1757140251168,-654.54,0.00014246,2]
[383844793,1757140251178,-480.0,0.00014246,2]
[383844794,1757140251187,-480.0,0.00014246,2]
[383844795,1757140251196,-250.06181351,0.00014246,2]
[383844796,1757140251206,-1337.25,0.00014246,2]
[383844797,1757140251215,-500.87,0.00014246,2]
[383844798,1757140251225,-480.0,0.00014246,2]
[383844799,1757140251235,-151.0,0.00014246,2]
[383844800,1757140251245,-480.0,0.00014246,2]
[383844801,1757140251255,-558.90422319,0.00014246,2]
[383844802,1757140251265,-618.85,0.00014246,2]
[383844803,1757140251274,-599.95,0.00014246,2]
[383844804,1757140251284,-480.0,0.00014246,2]
[383844805,1757140251294,-585.41891932,0.00014246,2]
[383844806,1757140251303,-151.0,0.00014246,2]
[383844807,1757140251313,-480.0,0.00014246,2]
[383844808,1757140251322,-225.41494017,0.00014246,2]
[383844809,1757140251331,-480.0,0.00014246,2]
[383844810,1757140251341,-2278.45,0.00014246,2]
[383844811,1757140251351,-339.81171498,0.00014246,2]
[383844812,1757140251362,-480.0,0.00014246,2]
[383844813,1757140251371,-839.63,0.00014246,2]
[383844814,1757140251380,-480.0,0.00014246,2]
[383844815,1757140251390,-232.20312096,0.00014246,2]
[383844816,1757140251399,-480.0,0.00014246,2]
[383844817,1757140251409,-1827.37,0.00014246,2]
[383844818,1757140251419,-1319.94,0.00014246,2]
[383844819,1757140251428,-543.32,0.00014246,2]
[383844820,1757140251438,-933.93,0.00014246,2]
[383844821,1757140251447,-480.0,0.00014246,2]
[383844822,1757140251456,-1717.43,0.00014246,2]
[383844823,1757140251466,-480.0,0.00014246,2]
[383844824,1757140251475,-480.0,0.00014246,2]
[383844825,1757140251485,-480.0,0.00014246,2]
[383844826,1757140251495,-151.0,0.00014246,2]
[383844827,1757140251504,-480.0,0.00014246,2]
[383844828,1757140251514,-480.0,0.00014246,2]
[383844829,1757140251523,-480.0,0.00014246,2]
[383844830,1757140251532,-480.0,0.00014246,2]
[383844831,1757140251541,-729.05,0.00014246,2]
[383844832,1757140251551,-733.35,0.00014246,2]
[383844833,1757140251561,-704.27,0.00014246,2]
[383844834,1757140251570,-480.0,0.00014246,2]
[383844835,1757140251579,-480.0,0.00014246,2]
[383844836,1757140251589,-1091.74,0.00014246,2]
[383844837,1757140251598,-3376.24,0.00014246,2]
[383844838,1757140251608,-480.0,0.00014246,2]
[383844839,1757140251617,-480.0,0.00014246,2]
[383844840,1757140251626,-151.0,0.00014246,2]
[383844841,1757140251635,-151.0,0.00014246,2]
[383844842,1757140251645,-170.56309128,0.00014246,2]
[383844843,1757140251654,-480.0,0.00014246,2]
[383844844,1757140251664,-480.0,0.00014246,2]
[383844845,1757140251674,-659.53,0.00014246,2]
[383844846,1757140251683,-480.0,0.00014246,2]
[383844847,1757140251693,-592.40861969,0.00014246,2]
[383844848,1757140251703,-2595.23,0.00014246,2]
[383844849,1757140251712,-480.0,0.00014246,2]
[383844850,1757140251721,-885.56,0.00014246,2]
[383844851,1757140251732,-480.0,0.00014246,2]
[383844852,1757140251741,-4938.05,0.00014246,2]
[383844853,1757140251751,-798.15,0.00014246,2]
[383844854,1757140251761,-1400.96,0.00014246,2]
[383844855,1757140251771,-480.0,0.00014246,2]
[383844856,1757140251780,-2248.57,0.00014246,2]
[383844857,1757140251789,-480.0,0.00014246,2]
[383844858,1757140251799,-980.28,0.00014246,2]
[383844859,1757140251808,-488.98085739,0.00014246,2]
[383844860,1757140251818,-480.0,0.00014246,2]
[383844861,1757140251826,-10557.03464543,0.00014246,2]
[383844862,1757140251924,-302.0,0.00013553,2]
[383844863,1757140251933,-202.51802019,0.00014246,2]
[383844864,1757140252292,-480.0,0.00013698,2]
[383844865,1757140252302,-66.12182628,0.00013972,2]
[383844866,1757140267623,302.0,0.00013283,2]
[383844867,1757140290632,302.0,0.00013283,2]
[383844868,1757140314214,302.0,0.00013283,2]
[383844869,1757140337728,821.843947,0.0001326,2]
[383844870,1757140337753,378.156053,0.0001326,2]
[383844884,1757140360987,1200.0,0.0001326,2]
[383844885,1757140363899,206.40280647,0.00013317,2]
[383844886,1757140384862,300.0,0.00013259,2]
[383844888,1757140408837,300.0,0.00013259,2]
[383844889,1757140433277,300.0,0.00013259,2]
[383844890,1757140441840,300.0,0.00013259,2]
[383844891,1757140458125,300.0,0.00013259,2]
[383844892,1757140466427,300.0,0.00013259,2]
[383844893,1757140482285,300.0,0.00013259,2]
[383844894,1757140490355,300.0,0.00013259,2]
[383844895,1757140506574,900.0,0.00013259,2]
[383844896,1757140515083,1720.0,0.00013259,2]
[383844897,1757140521509,1000.0,0.00012701,2]
[383844898,1757140531906,1720.0,0.00013259,2]
[383844899,1757140539932,475.44114053,0.00013259,2]
[383844900,1757140539956,630.06627939,0.00013259,2]
[383844901,1757140540804,1100.13525165,0.00013295,2]
[383844902,1757140555940,1720.0,0.00013259,2]
[383844903,1757140564148,325.66583756,0.00013295,2]
[383844904,1757140579505,1720.0,0.00013259,2]
[383844905,1757140604324,1720.0,0.00013259,2]
[383844906,1757140628225,1720.0,0.00013259,2]
[383844909,1757140651260,1064.1326314,0.00013259,2]
[383844910,1757140651285,1855.8673686,0.00013259,2]
[383844911,1757140674718,2920.0,0.00013259,2]
[383844913,1757140697845,300.0,0.00013258,2]
[383844914,1757140720911,300.0,0.00013258,2]
[383844915,1757140744786,300.0,0.00013258,2]
[383844916,1757140769524,284.95760783,0.00013294,2]
[383844917,1757140769975,300.0,0.00013258,2]
[383844918,1757140792918,300.0,0.00013258,2]
[383844919,1757140816889,1720.0,0.00013258,2]
[383844920,1757140840740,1719.17502357,0.00013258,2]
[383844921,1757140840766,0.82497643,0.00013258,2]
[383844922,1757140864038,1720.0,0.00013258,2]
[383844923,1757140886999,441.63966207,0.00013213,2]
[383844928,1757140974827,249.33790686,0.00013294,2]
[383844934,1757141179995,396.19410446,0.00013294,2]
[383844935,1757141198224,232.0,0.00027397,120]
[383844939,1757141385529,346.66984142,0.00013294,2]
[383844967,1757141431767,-1481.50059581,0.00013346,2]
[383844968,1757141431778,-626.15492305,0.00013346,2]
[383844969,1757141431789,-1200.0,0.00013387,2]
[383844970,1757141431798,-300.0,0.00013387,2]
[383844971,1757141431809,-300.0,0.00013387,2]
[383844972,1757141431818,-300.0,0.00013387,2]
[383844973,1757141431828,-300.0,0.00013387,2]
[383844974,1757141431837,-520.0,0.00013387,2]
[383844975,1757141431847,-14835.97307525,0.00013388,2]
[383845000,1757141437618,-22012.59982707,0.00013388,2]
[383845002,1757141437628,-500.0,0.00013394,2]
[383845004,1757141437637,-189.79182946,0.00013394,2]
[383845006,1757141437646,-327.2931145,0.00013394,2]
[383845008,1757141437655,-180.86667296,0.00013394,2]
[383845010,1757141437664,-207.47392009,0.00013394,2]
[383845012,1757141437674,-291.30450869,0.00013394,2]
[383845014,1757141437686,-220.89941391,0.00013394,2]
[383845016,1757141437696,-540.11558943,0.00013394,2]
[383845018,1757141437705,-500.0,0.00013394,2]
[383845020,1757141437715,-200.0,0.00013394,2]
[383845022,1757141437726,-200.0,0.00013394,2]
[383845024,1757141437736,-500.0,0.00013394,2]
[383845025,1757141437745,-500.0,0.00013394,2]
[383845027,1757141437754,-500.0,0.00013394,2]
[383845029,1757141437763,-500.0,0.00013394,2]
[383845031,1757141437772,-2.9607372,0.00013394,2]
[383845791,1757141446113,-340.4918526,0.00013394,2]
[383845792,1757141446122,-500.0,0.00013394,2]
[383845793,1757141446131,-500.0,0.00013394,2]
[383845794,1757141446140,-584.8261153,0.00013394,2]
[383845795,1757141446149,-98.31975709,0.00013394,2]
[383845821,1757141512881,165.300075,0.0002444,30]
[383845822,1757141606506,6845.33350876,0.00013295,2]
[383845823,1757141606532,10000.0,0.00013295,2]
[383845824,1757141606559,10000.0,0.00013295,2]
[383845825,1757141606583,10000.0,0.00013295,2]
[383845826,1757141606610,10000.0,0.00013295,2]
[383845827,1757141606634,10000.0,0.00013295,2]
[383845828,1757141606658,10000.0,0.00013295,2]
[383845829,1757141606682,10000.0,0.00013295,2]
[383845830,1757141606706,10000.0,0.00013295,2]
[383845831,1757141606730,10000.0,0.00013295,2]
[383845832,1757141606755,10000.0,0.00013295,2]
[383845833,1757141606785,10000.0,0.00013295,2]
[383845834,1757141606811,10000.0,0.00013295,2]
[383845835,1757141606835,10000.0,0.00013295,2]
[383845836,1757141606860,10000.0,0.00013295,2]
[383845837,1757141606884,10000.0,0.00013295,2]
[383845838,1757141606909,10000.0,0.00013295,2]
[383845839,1757141606932,10000.0,0.00013295,2]
[383845840,1757141606956,10000.0,0.00013295,2]
[383845841,1757141606980,10000.0,0.00013295,2]
[383845842,1757141607004,10000.0,0.00013295,2]
[383845843,1757141607030,10000.0,0.00013295,2]
[383845844,1757141607055,10000.0,0.00013295,2]
[383845845,1757141607080,10000.0,0.00013295,2]
[383845846,1757141607105,10000.0,0.00013295,2]
[383845847,1757141607129,10000.0,0.00013295,2]
[383845848,1757141607154,10000.0,0.00013295,2]
[383845849,1757141607180,10000.0,0.00013295,2]
[383845850,1757141607204,10000.0,0.00013295,2]
[383845851,1757141607229,10000.0,0.00013295,2]
[383845852,1757141607253,10000.0,0.00013295,2]
[383845853,1757141607277,10000.0,0.00013295,2]
[383845854,1757141607300,10000.0,0.00013295,2]
[383845855,1757141607324,10000.0,0.00013295,2]
[383845856,1757141607347,10000.0,0.00013295,2]
[383845857,1757141607372,10000.0,0.00013295,2]
[383845858,1757141607395,10000.0,0.00013295,2]
[383845859,1757141607418,3154.66649124,0.00013295,2]
[383845860,1757141627008,2770.61139225,0.00013213,2]
[383845861,1757141650641,2770.61139225,0.00013213,2]
[383845862,1757141674744,1210.83972709,0.00013213,2]
[383845863,1757141768951,93.27099717,0.00013295,2]
[383845864,1757141768975,10000.0,0.00013295,2]
[383845865,1757141768998,10000.0,0.00013295,2]
[383845866,1757141769022,10000.0,0.00013295,2]
[383845867,1757141769045,10000.0,0.00013295,2]
[383845868,1757141769071,10000.0,0.00013295,2]
[383845869,1757141769094,10000.0,0.00013295,2]
[383845878,1757141865205,471.74612888,0.00012857,2]
[383845880,1757141954579,478.50948594,0.00013028,2]
[383845881,1757142053421,-245.88514464,0.00013114,2]
[383845882,1757142060553,-167.3945075,0.00013114,2]
[383845883,1757142062068,-169.43285144,0.00013114,2]
[383845884,1757142064696,-1067.83144066,0.00013114,2]
[383845885,1757142068899,254.08730509,0.00012983,2]
[383845886,1757142070711,-262.7357079,0.00013114,2]
[383845887,1757142072688,-204.97495522,0.00013114,2]
[383845888,1757142093931,167.3945075,0.00012983,2]
[383845889,1757142110826,885.52378565,0.00012857,2]
[383845890,1757142112015,-167.3945075,0.00013114,2]
[383845891,1757142113039,3538.55304746,0.00012857,2]
[383845892,1757142303833,1584.16252336,0.00012983,2]
[383845893,1757142318183,-555.9873578,0.00013173,2]
[383845894,1757142318212,-3820.32841723,0.00013195,2]
[383845895,1757142318243,-47.36844994,0.0001327,2]
[383845896,1757142318461,-1152.63155006,0.0001327,2]
[383845897,1757142318491,-300.0,0.0001327,2]
[383845898,1757142318520,-1200.0,0.00013271,2]
[383845899,1757142318550,-300.0,0.00013271,2]
[383845900,1757142318579,-300.0,0.00013271,2]
[383845901,1757142318612,-300.0,0.00013271,2]
[383845902,1757142318643,-300.0,0.00013271,2]
[383845903,1757142318673,-501.3507352,0.00013273,2]
[383845904,1757142318704,-500.0,0.00013273,2]
[383845905,1757142319393,-500.0,0.00013273,2]
[383845906,1757142319425,-500.0,0.00013273,2]
[383845907,1757142319454,-501.06886129,0.00013273,2]
[383845908,1757142319483,-500.0,0.00013273,2]
[383845909,1757142319514,-500.0,0.00013273,2]
[383845929,1757142406880,481.92399613,0.00012857,2]
[383845930,1757142409521,1927.69598452,0.00012857,2]
[383845931,1757142412097,210.41323547,0.00012857,2]
[383845932,1757142412121,4126.90272971,0.00012857,2]
[383845933,1757142414564,5873.10727029,0.00012857,2]
[383845934,1757142414588,1829.96588387,0.00012857,2]
[383845959,1757142470751,617.05884632,0.00012857,2]
[383846065,1757142632190,-1264.84367216,0.00013218,2]
[383846067,1757142632202,-735.15632784,0.00013218,2]
[383846069,1757142632211,-3063.05454758,0.00013246,2]
[383846071,1757142632221,-1200.0,0.00013272,2]
[383846073,1757142632230,-300.0,0.00013272,2]
[383846075,1757142632239,-300.0,0.00013272,2]
[383846077,1757142632249,-1200.0,0.00013272,2]
[383846079,1757142632258,-300.0,0.00013272,2]
[383846080,1757142632267,-300.0,0.00013272,2]
[383846082,1757142632276,-500.0,0.00013273,2]
[383846084,1757142632286,-500.0,0.00013273,2]
[383846085,1757142632295,-500.0,0.00013273,2]
[383846086,1757142632304,-500.0,0.00013273,2]
[383846087,1757142632314,-500.0,0.00013273,2]
[383846088,1757142632323,-500.98987879,0.00013273,2]
[383846089,1757142632333,-500.45365264,0.00013273,2]
[383846090,1757142632342,-500.0,0.00013273,2]
[383846092,1757142632352,-500.0,0.00013273,2]
[383846093,1757142632360,-500.0,0.00013273,2]
[383846094,1757142632369,-590.45919396,0.00013273,2]
[383846095,1757142632378,-500.0,0.00013273,2]
[383846096,1757142632387,-25815.29703852,0.00013273,2]
[383846097,1757142632409,-24184.70296148,0.00013273,2]
[383846098,1757142632418,-207.78093407,0.00013287,2]
[383846099,1757142632427,-616.12616832,0.00013289,2]
[383846100,1757142632436,-500.0,0.00013289,2]
[383846101,1757142632446,-500.0,0.00013289,2]
[383846102,1757142632455,-500.0,0.00013289,2]
[383846103,1757142632469,-500.0,0.00013289,2]
[383846104,1757142632478,-500.0,0.00013289,2]
[383846105,1757142632488,-500.0,0.00013289,2]
[383846106,1757142632498,-500.0,0.00013289,2]
[383846107,1757142632508,-500.0,0.00013289,2]
[383846108,1757142632518,-500.0,0.00013289,2]
[383846109,1757142632527,-500.0,0.00013289,2]
[383846110,1757142632536,-500.0,0.00013289,2]
[383846111,1757142632546,-500.0,0.00013289,2]
[383846112,1757142632556,-500.0,0.00013289,2]
[383846113,1757142632565,-500.0,0.00013289,2]
[383846114,1757142632574,-500.0,0.00013289,2]
[383846115,1757142632584,-218.00913967,0.00013289,2]
[383846116,1757142632593,-500.0,0.00013289,2]
[383846117,1757142632603,-500.0,0.00013289,2]
[383846118,1757142632612,-500.0,0.00013289,2]
[383846119,1757142632621,-325.95039399,0.00013289,2]